Workbook

Sheet Gravity
B1: Universal Law of Gravitation
B3: This DIGMath module lets you investigate
B4: the Universal Law of Gravitation
C5: for the net force on an object
B6: travelling between two planets
B7: with different masses M1 and M2.
A10: How does the mass of the second planet M2 compare to M1?
B11: (between 10% and 10 times as massive)
C12: =IF(D12<20,0.1*D12+0.1,2+0.5*(D12-19)) -> 2.5 | D12: 20
A17: Click each item below for suggestions and investigations
D18: Item 1
D19: Item 2
D20: Item 3
D21: Item 4 | I21: Now trace a point along the trajectory
K22: 123
I23: r = | J23: =K22*dt -> 0.615 | K23: = | L23: =J23*100 -> 61.5 | M23: % of the distance
I24: F = | J24: =LOOKUP(J23+0.001,Sheet2!C3:C184, Sheet2!D3:D184) -> 14.222
A25: To access/download all the DIGMath Apps for Calculus
A26: Click this link: | C26: DIGMath for Calculus
A28: Created by: Sheldon P. Gordon
A29: Farmingdale State College
A30: Development of this module was supported by the
A31: NSF's Division of Undergraduate Education
A32: under grants DUE-0310123 and DUE-0442160.

Sheet Sheet2
C1: r | D1: F | G1: t0 | H1: tfinal
G2: =Gravity!J23 -> 0.62 | H2: =2*v0*SIN(2*PI()/360*a0)/32 -> 0
C3: 0.05 | D3: =-1*(1/C3^2-v0/(1-C3)^2) -> -397.2299169 | F3: x: | G3: =G2 -> 0.62 | H3: 0
C4: =C3+dt -> 0.055 | D4: -327.7790387 | G4: =Gravity!J24 -> 14.22232175 | H4: 0
C5: 0.06 | D5: -274.9484432
C6: 0.065 | D6: -233.8267148
C7: 0.07 | D7: -201.1911251
C8: 0.075 | D8: -174.855937
C9: 0.08 | D9: -153.2963138
C10: 0.085 | D10: -135.4222494
C11: 0.09 | D11: -120.4378311
A12: delta t = | B12: =1/200 -> 0.005 | C12: 0.095 | D12: -107.7509142
C13: 0.1 | D13: -96.91358025
C14: 0.105 | D14: -87.58194663
C15: 0.11 | D15: -79.48846095
C16: 0.115 | D16: -72.42243593
C17: 0.12 | D17: -66.21613866
C18: 0.125 | D18: -60.73469388
C19: 0.13 | D19: -55.86865141
C20: 0.135 | D20: -51.52844356
C21: 0.14 | D21: -47.64020265
C22: 0.145 | D22: -44.14257
C23: 0.15 | D23: -40.98423683
C24: 0.155 | D24: -38.12203109
C25: 0.16 | D25: -35.5194161
C26: 0.165 | D26: -33.14530274
C27: 0.17 | D27: -30.9731024
C28: 0.175 | D28: -28.97996664
C29: 0.18 | D29: -27.14617255
C30: 0.185 | D30: -25.45462273
C31: 0.19 | D31: -23.89043627
C32: 0.195 | D32: -22.44061198
C33: 0.2 | D33: -21.09375
C34: 0.205 | D34: -19.83982017
C35: 0.21 | D35: =-1*(1/C35^2-v0/(1-C35)^2) -> -18.66996866
C36: =C35+dt -> 0.215 | D36: -17.57635559
C37: 0.22 | D37: -16.5520183
C38: 0.225 | D38: -15.59075551
C39: 0.23 | D39: -14.68702902
C40: 0.235 | D40: -13.83587981
C41: 0.24 | D41: -13.03285626
C42: 0.245 | D42: -12.27395256
C43: 0.25 | D43: -11.55555556
C44: 0.255 | D44: -10.87439889
C45: 0.26 | D45: -10.22752322
C46: 0.265 | D46: -9.61224162
C47: 0.27 | D47: -9.026109434
C48: 0.275 | D48: -8.466897927
C49: 0.28 | D49: -7.932571177
C50: 0.285 | D50: -7.421265775
C51: 0.29 | D51: -6.931272955
C52: 0.295 | D52: -6.461022804
C53: 0.3 | D53: -6.009070295
C54: 0.305 | D54: -5.574082899
C55: 0.31 | D55: -5.154829574
C56: 0.315 | D56: -4.750170956
C57: 0.32 | D57: -4.359050606
C58: 0.325 | D58: -3.980487171
C59: 0.33 | D59: -3.613567375
C60: 0.335 | D60: -3.257439707
C61: 0.34 | D61: -2.911308746
C62: 0.345 | D62: -2.574430054
C63: 0.35 | D63: -2.246105543
C64: 0.355 | D64: -1.925679293
C65: 0.36 | D65: -1.612533758
C66: 0.365 | D66: -1.306086305
C67: 0.37 | D67: =-1*(1/C67^2-v0/(1-C67)^2) -> -1.005786077
C68: =C67+dt -> 0.375 | D68: -0.7111111111
C69: 0.38 | D69: -0.4215657167
C70: 0.385 | D70: -0.1366780572
C71: 0.39 | D71: 0.1440020666
C72: 0.395 | D72: 0.4209052635
C73: 0.4 | D73: 0.6944444444
C74: 0.405 | D74: 0.9650165777
C75: 0.41 | D75: 1.233004321
C76: 0.415 | D76: 1.498777548
C77: 0.42 | D77: 1.762694773
C78: 0.425 | D78: 2.025104493
C79: 0.43 | D79: 2.286346458
C80: 0.435 | D80: 2.546752869
C81: 0.44 | D81: 2.806649519
C82: 0.445 | D82: 3.066356891
C83: 0.45 | D83: 3.326191205
C84: 0.455 | D84: 3.586465432
C85: 0.46 | D85: 3.847490282
C86: 0.465 | D86: 4.109575166
C87: 0.47 | D87: 4.373029135
C88: 0.475 | D88: 4.638161821
C89: 0.48 | D89: 4.905284352
C90: 0.485 | D90: 5.174710287
C91: 0.49 | D91: 5.446756534
C92: 0.495 | D92: 5.721744292
C93: 0.5 | D93: 6
C94: 0.505 | D94: 6.281856308
C95: 0.51 | D95: 6.567653072
C96: 0.515 | D96: 6.857738374
C97: 0.52 | D97: 7.152469592
C98: 0.525 | D98: 7.452214496
C99: 0.53 | D99: =-1*(1/C99^2-v0/(1-C99)^2) -> 7.757352402
C100: =C99+dt -> 0.535 | D100: 8.068275379
C101: 0.54 | D101: 8.38538952
C102: 0.545 | D102: 8.709116279
C103: 0.55 | D103: 9.039893888
C104: 0.555 | D104: 9.378178869
C105: 0.56 | D105: 9.72444763
C106: 0.565 | D106: 10.07919818
C107: 0.57 | D107: 10.44295195
C108: 0.575 | D108: 10.81625578
C109: 0.58 | D109: 11.199684
C110: 0.585 | D110: 11.5938407
C111: 0.59 | D111: 11.99936222
C112: 0.595 | D112: 12.41691975
C113: 0.6 | D113: 12.84722222
C114: 0.605 | D114: 13.2910194
C115: 0.61 | D115: 13.74910529
C116: 0.615 | D116: 14.22232175
C117: 0.62 | D117: 14.71156257
C118: 0.625 | D118: 15.21777778
C119: 0.63 | D119: 15.74197842
C120: 0.635 | D120: 16.2852418
C121: 0.64 | D121: 16.84871721
C122: 0.645 | D122: 17.43363216
C123: 0.65 | D123: 18.04129936
C124: 0.655 | D124: 18.67312426
C125: 0.66 | D125: 19.33061346
C126: 0.665 | D126: 20.01538399
C127: 0.67 | D127: 20.72917351
C128: 0.675 | D128: 21.47385167
C129: 0.68 | D129: 22.25143274
C130: 0.685 | D130: 23.06408955
C131: 0.69 | D131: =-1*(1/C131^2-v0/(1-C131)^2) -> 23.91416908
C132: =C131+dt -> 0.695 | D132: 24.80420989
C133: 0.7 | D133: 25.73696145
C134: 0.705 | D134: 26.71540596
C135: 0.71 | D135: 27.74278267
C136: 0.715 | D136: 28.82261527
C137: 0.72 | D137: 29.95874276
C138: 0.725 | D138: 31.15535421
C139: 0.73 | D139: 32.41702814
C140: 0.735 | D140: 33.74877703
C141: 0.74 | D141: 35.15609805
C142: 0.745 | D142: 36.64503061
C143: 0.75 | D143: 38.22222222
C144: 0.755 | D144: 39.89500376
C145: 0.76 | D145: 41.67147584
C146: 0.765 | D146: 43.56060815
C147: 0.77 | D147: 45.57235414
C148: 0.775 | D148: 47.71778369
C149: 0.78 | D149: 50.00923707
C150: 0.785 | D150: 52.46050438
C151: 0.79 | D151: 55.08703508
C152: 0.795 | D152: 57.90618387
C153: 0.8 | D153: 60.9375
C154: 0.805 | D154: 64.20306925
C155: 0.81 | D155: 67.72791966
C156: 0.815 | D156: 71.54050505
C157: 0.82 | D157: 75.67328383
C158: 0.825 | D158: 80.16341523
C159: 0.83 | D159: 85.05360082
C160: 0.835 | D160: 90.39310732
C161: 0.84 | D161: 96.23901644
C162: 0.845 | D162: 102.6577614
C163: 0.85 | D163: =-1*(1/C163^2-v0/(1-C163)^2) -> 109.7270281
C164: =C163+dt -> 0.855 | D164: 117.5381219
C165: 0.86 | D165: 126.1989382
C166: 0.865 | D166: 135.8377149
C167: 0.87 | D167: 146.6078156
C168: 0.875 | D168: 158.6938776
C169: 0.88 | D169: 172.3197888
C170: 0.885 | D170: 187.7591445
C171: 0.89 | D171: 205.3491034
C172: 0.895 | D172: 225.5089691
C173: 0.9 | D173: 248.7654321
C174: 0.905 | D174: 275.7873463
C175: 0.91 | D175: 307.4343917
C176: 0.915 | D176: 344.8263392
C177: 0.92 | D177: 389.4435255
C178: 0.925 | D178: 443.2757081
C179: 0.93 | D179: 509.0478786
C180: 0.935 | D180: 590.572106
C181: 0.94 | D181: 693.3127106
C182: 0.945 | D182: 825.3264915
C183: 0.95 | D183: 998.8919668
